bitfinex/quotes_ETHUSD_20250406
["timestamp","ask_amount","ask_price","bid_price","bid_amount"]
[1743932361286,4.46484,1793.7,1793.6,5.38570544]
[1743932362118,8.7318531,1793.7,1793.6,0.20470544]
[1743932362287,8.7318531,1793.7,1793.6,5.38570544]
[1743932362481,8.7318531,1793.7,1793.2,25.079]
[1743932362482,3.90302,1793.5,1793.2,25.079]
[1743932362680,8.20586102,1793.5,1793.3,5.181]
[1743932362913,4.30284102,1793.5,1793.3,5.181]
[1743932364386,8.20582102,1793.5,1793.3,5.181]
[1743932365093,4.30284102,1793.5,1793.3,5.181]
[1743932365910,8.20589102,1793.5,1793.3,5.181]
[1743932367236,4.30284102,1793.5,1793.3,5.181]
[1743932367430,4.30284102,1793.5,1793.3,9.08441]
[1743932367605,4.30284102,1793.5,1793.3,9.85821]
[1743932367806,4.30284102,1793.5,1793.3,9.91396728]
[1743932368105,4.30284102,1793.5,1793.4,0.18797257]
[1743932371636,8.20582102,1793.5,1793.4,0.18797257]
[1743932374938,9.97898012,1793.5,1793.4,0.18797257]
[1743932375304,12.97898012,1793.5,1793.4,0.18797257]
[1743932375511,12.97898012,1793.5,1793.4,5.181]
[1743932375923,12.97898012,1793.5,1793.4,5.36899386]
[1743932381676,11.25618414,1793.5,1793.4,5.36899386]
[1743932382046,9.48302504,1793.5,1793.4,5.36899386]
[1743932386280,5.58004504,1793.5,1793.4,5.36899386]
[1743932390560,9.48302504,1793.5,1793.4,5.36899386]
[1743932393607,5.58004504,1793.5,1793.4,5.36899386]
[1743932395555,9.48302504,1793.5,1793.4,5.36899386]
[1743932396606,9.48302504,1793.5,1793.4,0.18799386]
[1743932396607,11.38390454,1793.5,1793.4,0.18799386]
[1743932396831,11.38390454,1793.5,1793.4,5.36899386]
[1743932397094,11.38390454,1793.5,1793.4,5.36900556]
[1743932402895,10.82160454,1793.5,1793.4,5.36900556]
[1743932403060,9.48302504,1793.5,1793.4,5.36900556]
[1743932406000,10.04532504,1793.5,1793.4,5.36900556]
[1743932406500,12.62537008,1793.5,1793.4,0.18800556]
[1743932406701,7.46593,1793.2,1793.1,5.0]
[1743932406997,7.46593,1793.2,1793.1,10.181]
[1743932406998,11.18291704,1793.2,1793.1,10.181]
[1743932407297,11.18291704,1793.2,1793.1,5.181]
[1743932407803,12.90500439,1793.2,1793.1,5.181]
[1743932408305,3.90407,1793.0,1792.9,25.084]
[1743932408600,3.90407,1793.0,1792.9,30.265]
[1743932409970,4.31491319,1793.0,1792.9,30.265]
[1743932410371,8.61704558,1793.0,1792.9,30.265]
[1743932410607,9.17934558,1793.0,1792.9,25.084]
[1743932410914,13.48767314,1793.0,1792.9,25.084]
[1743932411829,3.9047,1792.8,1792.7,5.181]
[1743932412016,11.20683239,1792.8,1792.7,5.181]
[1743932412220,6.90472,1792.7,1792.3,0.7617]
[1743932412536,3.90559,1792.3,1792.2,25.086]
[1743932412813,6.90559,1792.3,1792.2,30.267]
[1743932413014,6.90559,1792.3,1792.2,25.086]
[1743932413213,6.90559,1792.3,1792.2,30.267]
[1743932413383,6.90559,1792.3,1792.2,30.46196229]
[1743932414019,3.0,1792.3,1792.2,30.46196229]
[1743932415021,6.90559,1792.3,1792.2,30.46196229]
[1743932416022,7.32858648,1792.3,1792.2,30.46196229]
[1743932416987,3.42299648,1792.3,1792.2,30.46196229]
[1743932418019,3.0,1792.3,1792.2,30.46196229]
[1743932418526,3.0,1792.5,1792.2,35.12932229]
[1743932420222,4.71600827,1792.6,1792.3,3.90559]
[1743932420529,4.71600827,1792.6,1792.4,0.19414454]
[1743932420699,7.71600827,1792.6,1792.3,3.90548]
[1743932421229,11.62095827,1792.6,1792.4,0.19414454]
[1743932421597,11.62095827,1792.6,1792.2,34.93436]
[1743932421798,11.62095827,1792.6,1792.5,0.19372399]
[1743932422021,11.62095827,1792.6,1792.2,34.93436]
[1743932422193,11.62095827,1792.6,1792.5,0.19372399]
[1743932422395,11.62095827,1792.6,1792.2,34.93436]
[1743932422927,11.62095827,1792.6,1792.3,0.19456515]
[1743932424635,15.52606827,1792.6,1792.3,0.19456515]
[1743932424837,3.90524,1792.5,1792.3,0.19456515]
[1743932425036,4.46754,1792.5,1792.3,0.19456515]
[1743932425600,11.20750239,1792.4,1792.3,0.19456515]
[1743932425804,11.20750239,1792.4,1792.3,5.37756515]
[1743932431141,11.76980239,1792.4,1792.3,0.19456515]
[1743932431321,3.90616,1792.1,1791.9,5.184]
[1743932431641,4.30213239,1792.0,1791.9,5.184]
[1743932432009,8.20838239,1792.0,1791.9,5.184]
[1743932433539,8.20838239,1792.0,1791.8,25.095]
[1743932433749,8.20838239,1792.0,1791.9,5.184]
[1743932434045,4.30213239,1792.0,1791.9,5.184]
[1743932435540,3.9056,1792.3,1792.0,0.8292]
[1743932441338,7.81137,1792.3,1792.0,0.8292]
[1743932441515,3.9056,1792.3,1792.0,0.8292]
[1743932443156,3.9056,1792.3,1792.1,0.36425143]
[1743932444051,7.81136,1792.3,1792.1,0.36425143]
[1743932444554,3.9056,1792.3,1792.1,0.36425143]
[1743932446447,7.81134,1792.3,1792.1,0.36425143]
[1743932446955,3.9056,1792.3,1792.1,0.36425143]
[1743932449756,7.81134,1792.3,1792.1,0.36425143]
[1743932450257,3.9056,1792.3,1792.1,0.36425143]
[1743932450455,7.81134,1792.3,1792.1,0.36425143]
[1743932450655,8.20794239,1792.2,1792.1,0.36425143]
[1743932451026,8.20794239,1792.2,1792.0,5.184]
[1743932451236,8.20794239,1792.2,1792.1,0.36423086]
[1743932455032,8.77024239,1792.2,1792.1,0.36423086]
[1743932455935,3.90625,1792.0,1791.9,5.184]
[1743932456267,8.20838239,1792.0,1791.9,5.184]
[1743932457266,8.63218045,1792.0,1791.9,5.184]
[1743932458435,8.63218045,1792.0,1791.9,5.54909123]
[1743932462971,4.72593045,1792.0,1791.9,5.54909123]
[1743932463474,8.63218045,1792.0,1791.9,5.54909123]
[1743932468574,8.20800239,1792.2,1791.9,5.54909123]
[1743932468873,7.81229,1792.1,1791.9,6.33049123]
[1743932469273,3.90611,1792.1,1791.9,6.33049123]
[1743932469673,6.90625,1792.0,1791.9,0.36509123]
[1743932469841,11.20838239,1792.0,1791.9,5.54909123]
[1743932470164,11.20838239,1792.0,1791.9,5.54913167]
[1743932470341,11.62710674,1792.0,1791.9,5.54913167]
[1743932471768,9.90917195,1792.0,1791.9,5.54913167]
[1743932472064,11.37278257,1792.0,1791.9,5.54913167]
[1743932478380,9.90917195,1792.0,1791.9,5.54913167]
[1743932491793,9.90917195,1792.0,1791.9,0.36513167]
[1743932492020,3.90712,1791.6,1791.5,25.103]
[1743932492219,6.4913176,1791.6,1791.5,5.184]
[1743932492368,9.4913176,1791.6,1791.5,5.184]
[1743932493015,5.5841976,1791.6,1791.5,5.184]
[1743932493610,9.4913176,1791.6,1791.5,5.184]
[1743932494866,13.3985976,1791.6,1791.3,5.8279]
[1743932495091,13.3985976,1791.6,1791.4,5.184]
[1743932496104,9.4913176,1791.6,1791.4,5.184]
[1743932496603,13.3986076,1791.6,1791.4,5.184]
[1743932497703,9.4913176,1791.6,1791.4,5.184]
[1743932498209,13.3985976,1791.6,1791.4,5.184]
[1743932498384,9.4913176,1791.6,1791.5,0.8279]
[1743932501302,5.5841976,1791.6,1791.5,0.8279]
[1743932501807,9.4913176,1791.6,1791.5,0.8279]
[1743932503307,9.4913176,1791.6,1791.5,1.19561904]
[1743932503609,5.5841976,1791.6,1791.5,1.19561904]
[1743932504209,9.4913176,1791.6,1791.5,1.19561904]
[1743932505417,2.5841976,1791.6,1791.5,1.19561904]
[1743932521526,2.5841976,1791.6,1791.5,0.36771904]
[1743932522526,2.5841976,1791.6,1791.5,1.16931904]
[1743932530114,6.4908876,1791.8,1791.5,1.16931904]
[1743932530315,6.4908876,1791.8,1791.6,3.90704]
[1743932530316,3.0,1791.8,1791.6,3.90704]
[1743932530509,3.0,1791.8,1791.7,0.36620695]
[1743932530809,3.0,1791.9,1791.7,0.8228]
[1743932531016,3.0,1791.9,1791.8,5.184]
[1743932531226,3.0,1791.9,1791.8,5.54940542]
[1743932549472,2.5841976,1792.0,1791.8,5.54940542]
[1743932549660,2.5841976,1792.4,1792.1,0.8265]
[1743932549861,2.5841976,1792.4,1792.2,5.54638874]
[1743932554783,2.5841976,1792.5,1792.3,0.7748]
[1743932555084,2.5841976,1792.5,1792.3,1.13770649]
[1743932555670,6.4893576,1792.5,1792.3,1.13770649]
[1743932556068,2.5841976,1792.5,1792.3,1.13770649]
[1743932557035,2.5841976,1792.5,1792.3,5.04325649]
[1743932558777,2.5841976,1792.5,1792.3,1.13770649]
[1743932560641,6.4893576,1792.5,1792.3,1.13770649]
[1743932562285,2.5841976,1792.5,1792.3,1.13770649]
[1743932563796,6.4893976,1792.5,1792.3,1.13770649]
[1743932564008,7.0516976,1792.5,1792.3,0.36290649]
[1743932571725,8.14736136,1792.5,1792.3,0.36290649]
[1743932571919,8.14736136,1792.5,1792.4,5.181]
[1743932572207,7.0516976,1792.5,1792.4,5.54345299]
[1743932574984,7.0516976,1792.5,1792.4,0.36245299]
[1743932575190,7.0516976,1792.5,1792.4,5.181]
[1743932575499,7.0516976,1792.5,1792.4,5.54346321]
[1743932579119,7.0516976,1792.5,1792.4,0.36246321]
[1743932579120,10.0516976,1792.5,1792.4,0.36246321]
[1743932579334,11.44736936,1792.5,1792.4,0.36246321]
[1743932579498,3.90559,1792.3,1792.0,25.102]
[1743932579699,6.4897876,1792.3,1792.1,5.181]
[1743932583323,3.90584,1792.2,1792.0,25.102]
[1743932583639,3.90584,1792.2,1792.1,5.181]
[1743932584213,11.23726692,1792.2,1792.1,5.181]
[1743932584427,3.90603,1792.1,1791.8,4.5]
[1743932584732,6.4902276,1792.1,1791.9,5.181]
[1743932585527,2.5841976,1792.1,1791.9,5.181]
[1743932585894,7.33133692,1792.2,1791.9,5.181]
[1743932586227,7.33133692,1792.2,1792.0,0.7548]
[1743932587104,3.0,1792.2,1792.1,5.181]
[1743932589207,3.90519,1792.5,1792.2,0.7548]
[1743932593334,3.90519,1792.5,1792.3,0.36347263]
[1743932599639,7.81052,1792.5,1792.3,0.36347263]
[1743932599845,3.90537,1792.4,1792.3,0.36347263]
[1743932603247,6.4895676,1792.4,1792.3,0.36347263]
[1743932603619,10.3951476,1792.4,1792.1,5.9811]
[1743932603847,11.90669476,1792.4,1792.3,0.36344982]
[1743932604146,3.90581,1792.2,1792.1,5.18]
[1743932604531,4.46811,1792.2,1792.1,5.18]
[1743932605238,7.46811,1792.2,1792.1,5.18]
[1743932605437,7.87826362,1792.2,1792.1,5.18]
[1743932606459,9.90016122,1792.2,1792.1,5.18]
[1743932608247,9.90016122,1792.2,1792.1,5.54497134]
[1743932609570,3.0,1792.2,1792.1,5.54497134]
[1743932609759,6.90581,1792.2,1792.1,5.54497134]
[1743932614832,3.0,1792.2,1792.1,5.54497134]
[1743932616058,2.5841976,1792.4,1792.1,5.54497134]
[1743932616059,6.4896276,1792.4,1792.1,5.54497134]
[1743932616368,6.4896276,1792.4,1792.2,0.8261]
[1743932616661,10.81096,1792.4,1792.3,0.36411774]
[1743932617366,13.3951576,1792.4,1792.3,0.36411774]
[1743932617565,14.4762536,1792.4,1792.3,0.36411774]
[1743932617873,3.90569,1792.3,1792.1,6.0061]
[1743932618168,3.90569,1792.3,1792.2,0.36454785]
[1743932618531,3.90569,1792.3,1792.1,6.0061]
[1743932618731,3.90569,1792.3,1792.2,0.36454785]
[1743932619055,3.90569,1792.3,1792.1,6.0061]
[1743932619254,3.90569,1792.3,1792.2,0.36454785]
[1743932619553,3.90569,1792.3,1792.1,6.0061]
[1743932619753,3.90569,1792.3,1792.2,0.36454785]
[1743932620070,3.90569,1792.3,1792.1,6.0061]
[1743932620231,3.90569,1792.3,1792.2,0.36454785]
[1743932620436,3.90569,1792.3,1792.1,6.0061]
[1743932620632,3.90569,1792.3,1792.2,0.36454785]
[1743932620834,3.90569,1792.3,1792.1,6.0061]
[1743932621033,3.90569,1792.3,1792.2,0.36454785]
[1743932621233,3.90569,1792.3,1792.1,6.0061]
[1743932621455,3.90569,1792.3,1792.2,0.36454785]
[1743932621661,3.90569,1792.3,1792.1,6.0061]
[1743932621846,3.90569,1792.3,1792.2,0.36454785]
[1743932622045,3.90569,1792.3,1792.1,6.0061]
[1743932622245,3.90569,1792.3,1792.2,0.36454193]
[1743932622440,3.90569,1792.3,1792.1,6.0061]
[1743932622645,3.90569,1792.3,1792.2,0.36454193]
[1743932622869,3.90569,1792.3,1792.1,6.0061]
[1743932623057,7.81145,1792.3,1792.2,0.36454193]
[1743932623231,7.81145,1792.3,1792.1,6.0061]
[1743932623667,7.81145,1792.3,1792.2,0.36454193]
[1743932623878,7.81145,1792.3,1792.1,5.18]
[1743932624182,7.81145,1792.3,1792.2,0.36454193]
[1743932624484,7.81145,1792.3,1792.1,5.18]
[1743932624679,7.81145,1792.3,1792.2,0.36454193]
[1743932624984,7.81145,1792.3,1792.1,5.18]
[1743932625281,7.81145,1792.3,1792.2,0.36454193]
[1743932625475,7.81145,1792.3,1792.1,5.18]
[1743932625841,7.81145,1792.3,1792.2,0.36454193]
[1743932626042,7.81145,1792.3,1792.1,5.18]
[1743932626242,3.90581,1792.2,1792.1,5.18]
[1743932627583,3.90569,1792.3,1792.1,5.18]
[1743932629494,7.81144,1792.3,1792.1,5.18]
[1743932630387,3.90569,1792.3,1792.1,5.18]
[1743932631183,7.81143,1792.3,1792.1,5.18]
[1743932633743,3.90569,1792.3,1792.1,5.18]
[1743932634790,3.90581,1792.2,1792.1,5.18]
[1743932637265,3.90606,1792.1,1791.9,5.0]
[1743932637465,3.90606,1792.1,1792.0,5.18]
[1743932638500,3.90606,1792.1,1792.0,5.54567564]
[1743932642499,6.90606,1792.1,1792.0,0.36567564]
[1743932642697,6.90606,1792.1,1792.0,5.54467564]
[1743932651620,3.90581,1792.2,1792.0,6.37447564]
[1743932651922,3.0,1792.4,1792.0,10.28069564]
[1743932652141,6.90548,1792.4,1792.0,10.28069564]
[1743932652615,3.9056,1792.3,1792.0,6.37447564]
[1743932655197,7.81137,1792.3,1792.0,6.37447564]
[1743932655576,7.81185,1792.2,1792.0,5.54467564]
[1743932655779,7.81185,1792.2,1792.1,5.179]
[1743932656193,7.81185,1792.2,1792.1,5.54423659]
[1743932657311,3.90584,1792.2,1792.1,5.54423659]
[1743932659231,4.32757665,1792.2,1792.1,5.54423659]
[1743932662600,0.42173665,1792.2,1792.1,5.54423659]
[1743932662802,6.4898376,1792.3,1792.1,5.54423659]
[1743932666438,10.3955876,1792.3,1792.1,5.54423659]
[1743932667234,3.90581,1792.2,1792.1,5.54423659]
[1743932676811,4.31672132,1792.2,1792.1,0.36523659]
[1743932677171,5.97481608,1792.2,1792.1,5.54323659]
[1743932679209,4.87902132,1792.2,1792.1,5.54323659]
[1743932679413,4.31672132,1792.2,1792.1,5.54323659]
[1743932682937,6.90091892,1792.2,1792.1,5.54323659]
[1743932690268,7.46321892,1792.2,1792.1,5.54323659]
[1743932693969,7.46321892,1792.2,1792.1,0.36523659]
[1743932694179,6.90603,1792.1,1792.0,5.179]
[1743932694343,6.90603,1792.1,1792.0,5.51462228]
[1743932701856,6.90603,1792.1,1792.0,0.33562228]
[1743932702043,6.90603,1792.1,1792.0,5.51462228]
[1743932702383,3.90646,1791.9,1791.8,0.8181]
[1743932702543,3.90646,1791.9,1791.8,5.9971]
[1743932704978,6.4904776,1792.0,1791.8,5.9971]
[1743932705274,3.0,1792.0,1791.9,0.7869]
[1743932705879,6.90625,1792.0,1791.9,0.7869]
[1743932706263,9.4904476,1792.0,1791.9,0.7869]
[1743932706481,3.90646,1791.9,1791.8,5.179]
[1743932708287,3.90712,1791.6,1791.5,5.0]
[1743932708572,6.4913176,1791.6,1791.5,5.178]
[1743932709155,6.90273683,1791.6,1791.5,5.178]
[1743932711792,6.90734,1791.5,1791.4,25.104]
[1743932711980,6.90734,1791.5,1791.4,30.283]
[1743932713393,6.90734,1791.5,1791.4,25.41523229]
[1743932713601,6.90734,1791.5,1791.4,30.59423229]
[1743932716300,6.90734,1791.5,1791.4,25.41523229]
[1743932716461,6.90734,1791.5,1791.4,30.59423229]
[1743932716661,4.31853923,1791.6,1791.4,31.68036592]
[1743932716880,4.31853923,1791.6,1791.5,0.7644]
[1743932717396,3.90712,1791.6,1791.5,1.07417408]
[1743932725203,6.4913176,1791.6,1791.5,5.48877408]
[1743932726485,3.90712,1791.6,1791.5,5.48877408]
[1743932731716,3.90712,1791.6,1791.5,5.60960227]
[1743932735917,6.90542986,1791.7,1791.5,5.60960227]
[1743932736117,4.32123226,1791.7,1791.5,5.60960227]
[1743932736299,8.22828226,1791.7,1791.5,5.60960227]
[1743932736494,3.90712,1791.6,1791.5,5.60960227]
[1743932738622,7.32128226,1791.7,1791.5,5.60960227]
[1743932738820,11.22839226,1791.7,1791.5,5.60960227]
[1743932739029,7.32128226,1791.7,1791.5,5.60960227]
[1743932739533,3.90712,1791.6,1791.5,5.60960227]
[1743932740637,9.4913176,1791.6,1791.5,5.60960227]
[1743932741293,11.43487759,1791.6,1791.5,5.60960227]
[1743932742017,10.0536176,1791.6,1791.5,5.60960227]
[1743932743929,9.4913176,1791.6,1791.5,5.60960227]
[1743932748130,3.1464976,1792.1,1791.7,0.7998]
[1743932748294,3.90614,1792.1,1791.8,0.05580676]
[1743932748610,3.90614,1792.1,1791.9,5.9778]
[1743932748820,4.32349258,1792.1,1792.0,5.60358734]
[1743932749017,6.90769018,1792.1,1792.0,5.60358734]
[1743932749212,9.90769018,1792.1,1792.0,5.60358734]
[1743932749419,7.32349258,1792.1,1792.0,5.60358734]
[1743932750594,9.90769018,1792.1,1792.0,5.60358734]
[1743932750808,11.2890402,1792.1,1792.0,5.60358734]
[1743932751007,9.90769018,1792.1,1792.0,5.60358734]
[1743932751695,7.32349258,1792.1,1792.0,5.60358734]
[1743932771760,9.90732091,1792.1,1792.0,5.60358734]
[1743932771965,10.46962091,1792.1,1792.0,5.60258734]
[1743932772278,6.00118091,1792.1,1792.0,5.60258734]
[1743932772458,6.90603,1792.1,1792.0,5.60258734]
[1743932776363,8.28761525,1792.1,1792.0,5.60258734]
[1743932776535,8.28761525,1792.1,1792.0,0.42558734]
[1743932776733,8.84991525,1792.1,1792.0,0.42558734]
[1743932776934,3.90646,1791.9,1791.8,5.177]
[1743932777253,6.49028833,1791.9,1791.8,5.177]
[1743932778287,3.90698,1791.7,1791.5,30.9152]
[1743932778451,6.49094833,1791.6,1791.5,30.9152]
[1743932778639,6.49094833,1791.6,1791.5,36.0922]
[1743932779397,2.58382833,1791.6,1791.5,36.0922]
[1743932779799,3.90698,1791.7,1791.5,36.0922]
[1743932783573,7.81405,1791.7,1791.5,36.0922]
[1743932783944,3.90712,1791.6,1791.5,36.0922]
[1743932785262,3.90698,1791.7,1791.5,36.0922]
[1743932785857,3.90698,1791.7,1791.5,10.9852]
[1743932786680,12.12126343,1791.8,1791.5,10.9852]
[1743932786876,8.21442343,1791.8,1791.5,10.9852]
[1743932787381,12.12125343,1791.8,1791.5,10.9852]
[1743932787580,3.90692,1791.7,1791.5,10.9852]
[1743932788198,3.90692,1791.7,1791.6,0.4274086]
[1743932790797,4.32303099,1791.7,1791.6,0.4274086]
[1743932791962,4.30773343,1791.8,1791.6,1.1786086]
[1743932792162,8.23207412,1792.2,1791.8,0.7512]
[1743932792363,3.0,1792.1,1791.9,5.60267377]
[1743932792563,6.90606,1792.1,1791.9,5.60267377]
[1743932795087,10.81225,1792.1,1791.9,5.60267377]
[1743932795287,3.90625,1792.0,1791.9,5.60267377]
[1743932795863,6.90606,1792.1,1791.9,5.60267377]
[1743932797198,10.81225,1792.1,1791.9,5.60267377]
[1743932797701,6.90606,1792.1,1791.9,5.60267377]
[1743932799202,10.81226,1792.1,1791.9,5.60267377]
[1743932800803,6.90606,1792.1,1791.9,5.60267377]
[1743932801305,10.81224,1792.1,1791.9,5.60267377]
[1743932802005,3.90625,1792.0,1791.9,5.60267377]
[1743932810216,4.46855,1792.0,1791.9,0.42567377]
[1743932810380,4.46855,1792.0,1791.9,5.176]
[1743932810715,4.46855,1792.0,1791.9,5.60166127]
[1743932811609,3.90625,1792.0,1791.9,5.60166127]
[1743932816218,9.48969234,1792.1,1791.9,5.60166127]
[1743932816878,3.0,1792.1,1791.9,6.39596127]
[1743932817582,6.90605,1792.1,1791.9,6.39596127]
[1743932820220,6.90605,1792.1,1791.9,5.60166127]
[1743932820437,5.58363234,1792.0,1791.9,5.60166127]
[1743932820923,9.48988234,1792.0,1791.9,5.60166127]
[1743932825424,9.48988234,1792.0,1791.9,0.42566127]
[1743932825630,9.48988234,1792.0,1791.9,5.176]
[1743932825828,11.02386234,1792.0,1791.9,5.60166568]
[1743932827734,11.02386234,1792.0,1791.9,0.42566568]
[1743932828228,6.90646,1791.9,1791.8,5.176]
[1743932829095,3.0,1791.9,1791.8,5.176]
[1743932829495,6.90646,1791.9,1791.8,5.176]
[1743932833431,6.90646,1791.9,1791.8,5.60210772]
[1743932842539,6.90646,1791.9,1791.8,0.42610772]
[1743932842708,6.90646,1791.9,1791.8,5.60210772]
[1743932843540,7.46876,1791.9,1791.8,5.60210772]
[1743932843736,8.86462423,1791.9,1791.8,5.60210772]
[1743932848843,6.90646,1791.9,1791.8,5.60210772]
[1743932856149,3.0,1791.9,1791.8,5.60210772]
[1743932856352,3.0,1791.9,1791.8,6.43180772]
[1743932856658,4.32601412,1792.2,1791.8,9.50870772]
[1743932856823,10.81563646,1792.2,1791.9,0.8297]
[1743932857218,3.90603,1792.1,1792.0,0.42358326]
[1743932857930,7.98759765,1792.1,1792.0,0.42358326]
[1743932858148,7.98759765,1792.1,1791.8,5.176]
[1743932858149,6.90646,1791.9,1791.8,5.176]
[1743932858447,9.49009234,1791.9,1791.8,5.60045689]
[1743932860836,9.49009234,1791.9,1791.8,0.42445689]
[1743932861257,9.49009234,1791.9,1791.8,5.176]
[1743932861659,9.49009234,1791.9,1791.8,5.59978768]
[1743932865034,9.49009234,1791.9,1791.8,0.42378768]
[1743932865234,10.82973457,1791.9,1791.8,5.59878768]
[1743932865538,11.39203457,1791.9,1791.8,5.5988413]
[1743932867416,11.39203457,1791.9,1791.8,0.4238413]
[1743932867592,3.90755,1791.4,1791.3,25.105]
[1743932867740,7.354535,1791.4,1791.3,25.105]
[1743932867940,6.90755,1791.4,1791.3,25.105]
[1743932869395,7.33327215,1791.4,1791.3,25.105]
[1743932869886,11.64343507,1791.4,1791.3,25.105]
[1743932874384,3.90777,1791.3,1791.2,5.175]
[1743932875389,3.90777,1791.3,1791.2,5.46619216]
[1743932879400,3.90777,1791.3,1791.2,5.46719216]
[1743932880875,9.08142051,1791.3,1791.2,0.29119216]
[1743932881203,3.90799,1791.2,1791.1,0.05]
[1743932881393,8.21815292,1791.2,1791.1,0.05]
[1743932885409,11.21815292,1791.2,1791.1,0.05]
[1743932885612,13.24811026,1791.2,1791.1,0.05]
[1743932889013,11.21815292,1791.2,1791.1,0.05]
[1743932889690,9.49448405,1791.2,1791.1,0.05]
[1743932891720,11.21927482,1791.2,1791.1,0.05]
[1743932893225,11.21927482,1791.2,1791.1,0.34303274]
[1743932893426,11.21927482,1791.2,1791.1,0.05]
[1743932893627,12.7882093,1791.2,1791.1,0.34303274]
[1743932905636,11.21927482,1791.2,1791.1,0.34303274]
[1743932913734,9.4950629,1791.2,1791.1,0.34303274]
[1743932917255,9.4950629,1791.2,1791.1,1.15793274]
[1743932922087,3.90799,1791.2,1791.1,1.15793274]
[1743932924381,6.4946329,1791.4,1791.2,0.8149]
[1743932924594,10.4023829,1791.4,1791.3,0.28678418]
[1743932924772,10.4023829,1791.4,1791.3,0.8149]
[1743932925077,6.4946329,1791.4,1791.3,1.10157724]
[1743932940877,2.5870729,1791.5,1791.3,1.10157724]
[1743932941078,6.4940029,1791.7,1791.5,0.8245]
[1743932941467,6.4940029,1791.7,1791.6,1.10964932]
[1743932952104,6.4940029,1791.7,1791.6,5.45914932]
[1743932952105,7.53407319,1791.7,1791.6,5.45914932]
[1743932952300,10.12114609,1791.7,1791.6,5.45914932]
[1743932953032,13.68344609,1791.7,1791.6,0.28514932]
[1743932953323,13.68344609,1791.7,1791.6,5.174]
[1743932953525,13.68344609,1791.7,1791.6,5.45852847]
[1743932963226,13.12114609,1791.7,1791.6,5.45852847]
[1743932963425,10.53407319,1791.7,1791.6,5.45852847]
[1743932964127,13.12114609,1791.7,1791.6,5.45852847]
[1743932965436,10.53407319,1791.7,1791.6,5.45852847]
[1743932965630,13.12114609,1791.7,1791.6,5.45852847]
[1743932965836,10.53407319,1791.7,1791.6,5.45852847]
[1743932966730,10.53407319,1791.7,1791.6,6.28502847]
[1743932966930,9.4940029,1791.7,1791.6,6.28502847]
[1743932975786,9.4940029,1791.7,1791.6,5.45852847]
[1743932976586,6.4940029,1791.7,1791.6,6.24112847]
[1743932977285,9.4940029,1791.7,1791.6,6.24112847]
[1743932978996,9.4940029,1791.7,1791.6,5.45852847]
[1743932979313,10.83407319,1791.7,1791.6,5.45852847]
[1743932979862,13.42114609,1791.7,1791.6,5.45852847]
[1743932980409,10.83407319,1791.7,1791.6,5.45852847]
[1743932988468,9.4940029,1791.7,1791.6,5.45852847]
[1743932999321,12.0810758,1791.7,1791.6,0.28452847]
[1743932999517,12.6433758,1791.7,1791.6,5.45752847]
[1743932999815,12.6433758,1791.7,1791.6,5.173]
[1743933000118,12.6433758,1791.7,1791.6,5.43370938]
[1743933000282,14.29838338,1791.7,1791.6,5.43370938]
[1743933000485,11.71131048,1791.7,1791.6,0.26070938]
[1743933000919,3.90712,1791.6,1791.5,5.173]
[1743933003592,6.4941929,1791.6,1791.5,5.173]
[1743933005238,3.90712,1791.6,1791.5,5.9732]
[1743933005432,6.4941929,1791.6,1791.5,5.9732]
[1743933005632,6.4941929,1791.6,1791.5,5.173]
[1743933006135,3.90771,1791.4,1791.2,0.8262]
[1743933006339,3.90771,1791.4,1791.3,5.173]
[1743933006509,6.4947829,1791.4,1791.3,5.173]
[1743933007942,10.4024929,1791.4,1791.3,5.173]
[1743933012641,3.90777,1791.3,1791.2,0.8262]
[1743933012806,3.90777,1791.3,1791.2,5.9992]
[1743933013436,3.90777,1791.3,1791.2,6.26184562]
[1743933014238,3.90777,1791.3,1791.2,5.43564562]
[1743933014627,6.90777,1791.3,1791.2,0.26264562]
[1743933014943,6.90777,1791.3,1791.2,5.173]
[1743933015132,6.90777,1791.3,1791.2,5.43565412]
[1743933018348,2.5870729,1791.7,1791.3,0.7829]
[1743933018548,3.9072,1791.6,1791.5,0.7829]
[1743933018749,6.4940829,1791.7,1791.5,5.9559]
[1743933018920,3.90712,1791.6,1791.5,6.21659632]
[1743933019447,3.90701,1791.7,1791.5,6.21659632]
[1743933019645,3.90701,1791.7,1791.6,0.7829]
[1743933019852,3.90701,1791.7,1791.6,1.04287152]
[1743933021050,6.4940829,1791.7,1791.6,1.04287152]
[1743933021556,3.9067,1791.8,1791.6,1.04287152]
[1743933021755,3.9067,1791.8,1791.7,0.7829]
[1743933022058,3.9067,1791.8,1791.7,1.04194698]
[1743933022357,3.9067,1791.8,1791.7,0.25904698]
[1743933022564,4.94672529,1791.8,1791.7,0.25904698]
[1743933022729,3.90712,1791.6,1791.5,5.9559]
[1743933023055,6.4941929,1791.6,1791.5,5.9559]
[1743933026230,2.5870729,1791.6,1791.5,5.9559]
[1743933028475,2.5870729,1791.6,1791.5,6.21570718]
[1743933029271,2.5870729,1791.6,1791.5,6.27151956]
[1743933033091,6.4941929,1791.6,1791.5,6.27151956]
[1743933035307,6.4941929,1791.6,1791.5,6.21570718]
[1743933035603,6.4941929,1791.6,1791.5,5.43280718]
[1743933035811,9.0812658,1791.6,1791.5,0.25980718]
[1743933035994,10.38008438,1791.6,1791.5,5.43180718]
[1743933036370,9.0812658,1791.6,1791.5,5.43180718]
[1743933037605,9.0812658,1791.6,1791.5,0.25980718]
[1743933037904,9.0812658,1791.6,1791.5,5.43180718]
[1743933038879,6.4941929,1791.6,1791.5,5.43180718]
[1743933045621,12.6435658,1791.6,1791.5,0.25980718]
[1743933045789,3.90799,1791.2,1791.1,25.159]
[1743933045996,12.6444358,1791.2,1791.1,0.05]
[1743933047916,16.09628748,1791.2,1791.1,0.05]
[1743933048074,18.09670123,1791.2,1791.1,0.05]
[1743933048674,18.50650824,1791.2,1791.1,0.05]
[1743933053312,18.50650824,1791.2,1791.1,0.2054518]
[1743933060308,18.50650824,1791.2,1791.1,0.05]
[1743933062345,14.1935095,1791.2,1791.1,0.05]
[1743933062716,14.1935095,1791.2,1791.1,0.20658519]
[1743933064363,13.6312095,1791.2,1791.1,0.20658519]